[Event "Marienbad Open-A2 2019"]
[Site "Marianske Lazne"]
[Date "2019.01.22"]
[Round "4"]
[White "Kovalev, Andrei"]
[Black "Gungl, Theo"]
[Result "0-1"]
[ECO "B80"]
[WhiteElo "2520"]
[BlackElo "2368"]
[Annotator "RC"]
[PlyCount "90"]
[EventDate "2019.01.17"]
[EventType "tourn"]
[EventCountry "CZE"]
[SourceTitle "playchess.com"]
[Source "ChessBase"]
[SourceQuality "1"]
[TimeControl "40/5400+30:1800+30"]

1. e4 {[%emt 0:00:34]} c5 {[%emt 0:00:00]} 2. Nc3 {[%emt 0:00:24]} d6 {[%emt 0:00:00]} 3. Nf3 {[%emt 0:00:11]} Nf6 {[%emt 0:00:00]} 4. d4 {[%emt 0:00:16]} cxd4 {[%emt 0:00:02]} 5. Nxd4 {[%emt 0:00:03]} a6 {[%emt 0:00:04]} 6. g3 {[%emt 0:00:20]} e6 {[%emt 0:00:23]} 7. Bg2 {[%emt 0:00:05]} Qc7 {[%emt 0:00:32]} 8. O-O {[%emt 0:00:15]} Nc6 {[%emt 0:01:09]} 9. Nxc6 {[%emt 0:00:08]} bxc6 {[%emt 0:00:20]} 10. Na4 Bb7 {[%emt 0:09:53]} 11. c4 {[%emt 0:01:21]} c5 {[%emt 0:06:23]} 12. Qe2 {[%emt 0:00:05]} Be7 {[%emt 0:10:54]} 13. b3 {[%emt 0:01:38]} Bc6 {[%emt 0:04:51]} 14. Nc3 {[%emt 0:07:07]} O-O {[%emt 0:01:52]} 15. Bb2 {[%emt 0:00:20]} Nd7 {[%emt 0:05:38]} 16. Nd5 {[%emt 0:09:09]} Bxd5 {[%emt 0:00:31]} 17. exd5 {[%emt 0:01:39]} e5 {[%emt 0:00:11]} 18. Bh3 {[%emt 0:05:32]} Rae8 {[%emt 0:24:36]} 19. Rae1 {[%emt 0:00:18]} Qd8 {[%emt 0:13:43]} 20. Bc3 {[%emt 0:03:14]} g6 {[%emt 0:02:43]} 21. Qb2 {[%emt 0:21:13]} f5 {[%emt 0:01:19]} 22. Re2 {[%emt 0:03:51]} Bf6 {[%emt 0:00:27]} 23. f3 {[%emt 0:00:17]} Qc7 {[%emt 0:04:04]} 24. Kh1 {[%emt 0:02:51]} Kg7 {[%emt 0:01:37]} 25. Rfe1 {[%emt 0:01:11]} Re7 {[%emt 0:02:29]} 26. Rg1 {[%emt 0:05:57]} Kg8 {[%emt 0:05:01]} 27. g4 {[%emt 0:02:33]} fxg4 {[%emt 0:00:09]} 28. Bxg4 {[%emt 0:00:26]} Bg7 {[%emt 0:01:21]} 29. Qd2 {[%emt 0:18:26]} Nf6 {[%emt 0:02:27]} 30. Be6+ {[%emt 0:00:11]} Kh8 {[%emt 0:00:04]} 31. f4 {[%emt 0:02:13]} exf4 {[%emt 0:00:46]} 32. Qxf4 {[%emt 0:00:50]} Nd7 {[%emt 0:00:23]} 33. Qh4 {[%emt 0:02:36]} Ne5 {[%emt 0:00:12]} 34. Bxe5 {[%emt 0:02:37]} Bxe5 {[%emt 0:00:01]} 35. Rxg6 {[%emt 0:01:03]} Rg7 {[%emt 0:00:10]} 36. Rg4 {[%emt 0:01:07]} Bd4 {[%emt 0:01:41]} 37. h3 {[%emt 0:02:41]} a5 {[%emt 0:01:39]} 38. Bf5 {[%emt 0:01:49]} Qf7 {[%emt 0:00:22]} 39. Rxg7 {[%emt 0:00:53]} Qxg7 {[%emt 0:00:04]} 40. Bg4 {[%emt 0:02:35]} Qf7 {[%emt 0:00:08]} 41. Qe1 {[%emt 0:11:02]} h5 {[%emt 0:00:19]} 42. Be6 {[%emt 0:07:08]} Qf3+ {[%emt 0:00:49]} 43. Kh2 {[%emt 0:00:11]} Bc3 {[%emt 0:07:16]} 44. Qd1 {[%emt 0:01:41]} Be5+ {[%emt 0:00:21]} 45. Kg1 {[%emt 0:00:08]} Rf6 {[%emt 0:00:09]} 0-1

[Event "Marienbad Open-A2 2019"]
[Site "Marianske Lazne"]
[Date "2019.01.22"]
[Round "4"]
[White "Vokac, Marek"]
[Black "Yeritsyan, Aram"]
[Result "0-1"]
[ECO "A05"]
[WhiteElo "2380"]
[BlackElo "2349"]
[Annotator "NA"]
[PlyCount "108"]
[EventDate "2019.01.17"]
[EventType "tourn"]
[EventCountry "CZE"]
[SourceTitle "playchess.com"]
[Source "ChessBase"]
[SourceQuality "1"]
[TimeControl "40/5400+30:1800+30"]

1. Nf3 {[%emt 0:00:00]} Nf6 {[%emt 0:00:00]} 2. g3 {[%emt 0:00:08]} b5 {[%emt 0:00:00]} 3. a4 {[%emt 0:00:18]} b4 {[%emt 0:00:33]} 4. Bg2 {[%emt 0:00:11]} Bb7 {[%emt 0:00:20]} 5. O-O {[%emt 0:00:24]} e6 {[%emt 0:01:48]} 6. d3 {[%emt 0:00:11]} d6 {[%emt 0:06:02]} 7. e4 {[%emt 0:00:27]} c5 {[%emt 0:00:02]} 8. Nbd2 {[%emt 0:01:06] A05: Réti Opening: 1 Nf3 Nf6} Be7 {[%emt 0:00:31]} (8... Nc6 9. Nc4 Qc7 10. Re1 Be7 11. a5 Rd8 12. a6 Ba8 13. Bf4 O-O 14. e5 dxe5 15. Nfxe5 Qc8 16. Nxc6 Bxc6 17. Bxc6 Qxc6 {0-1 (53) Naiditsch,A (2705)-Fedorchuk,S (2648) Riadh 2017}) 9. Re1 {[%emt 0:00:58]} Nbd7 {[%emt 0:00:47]} 10. Nc4 {[%emt 0:05:06]} O-O {[%emt 0:01:00]} 11. Bf4 {[%emt 0:02:32]} d5 {[%emt 0:09:02]} 12. exd5 {[%emt 0:02:37]} Bxd5 $146 {[%emt 0:01:35]} ({Predecessor:} 12... Nxd5 13. Bd6 N5b6 14. Bxe7 Qxe7 {0-1 (41) Roth,N (2242)-Ivanov,V (2478) Bayern 2005}) 13. a5 {[%emt 0:01:47]} Rc8 {[%emt 0:01:07]} 14. c3 {[%emt 0:04:46]} Nb8 {[%emt 0:01:56]} 15. Nfe5 {[%emt 0:26:07]} Nc6 {[%emt 0:01:07]} 16. Nxc6 {[%emt 0:03:58]} Rxc6 {[%emt 0:02:15]} 17. Bxd5 {[%emt 0:01:12]} Nxd5 {[%emt 0:03:53]} 18. Bd2 {[%emt 0:02:11]} Bf6 {[%emt 0:00:46]} 19. Qb3 {[%emt 0:05:16]} Qc7 {[%emt 0:02:08]} 20. cxb4 {[%emt 0:03:01]} Nxb4 {[%emt 0:06:22]} 21. Bxb4 {[%emt 0:00:03]} Rb8 {[%emt 0:00:03]} 22. Ra4 {[%emt 0:01:06]} Qb7 {[%emt 0:01:22]} 23. Re4 {[%emt 0:00:12]} cxb4 {[%emt 0:01:09]} 24. h4 {[%emt 0:01:30]} Qb5 {[%emt 0:03:49]} 25. Kg2 {[%emt 0:16:59]} Be7 {[%emt 0:05:23]} 26. Ne5 {[%emt 0:01:18]} Ra6 {[%emt 0:02:53]} 27. Qc4 {[%emt 0:02:53]} Qb7 {[%emt 0:00:25]} 28. Kh2 {[%emt 0:05:01]} Rc8 {[%emt 0:04:39]} 29. Qd4 {[%emt 0:00:41]} Bc5 {[%emt 0:04:14]} 30. Qd7 {[%emt 0:01:29]} Qxd7 {[%emt 0:00:12]} 31. Nxd7 {[%emt 0:00:08]} Bxf2 {[%emt 0:01:33]} 32. Rexb4 {[%emt 0:00:03]} Rd6 {[%emt 0:03:35]} 33. Ne5 {[%emt 0:00:51]} f6 {[%emt 0:00:19]} 34. Ng4 {[%emt 0:04:20]} Be1 {[%emt 0:01:15]} 35. Re4 {[%emt 0:03:19]} Rc2+ {[%emt 0:02:01]} 36. Kh3 {[%emt 0:00:03]} Rc1 {[%emt 0:03:43]} 37. Rac4 {[%emt 0:01:45]} Rxc4 {[%emt 0:07:08]} 38. dxc4 {[%emt 0:00:03]} Bxa5 {[%emt 0:00:03]} 39. c5 {[%emt 0:00:20]} Rc6 {[%emt 0:00:19]} 40. b4 {[%emt 0:02:56] [#]} f5 $1 {[%emt 0:01:20]} 41. Ne5 {[%emt 0:07:45]} Rxc5 {[%emt 0:00:31]} 42. bxc5 {[%emt 0:00:59]} fxe4 {[%emt 0:00:22]} 43. Kg2 {[%emt 0:01:20]} Bc7 {[%emt 0:02:18]} 44. Nc4 {[%emt 0:00:05]} a5 {[%emt 0:01:05]} 45. g4 {[%emt 0:00:15]} a4 {[%emt 0:00:12]} 46. Kf2 {[%emt 0:00:53]} Bf4 {[%emt 0:00:03]} 47. c6 {[%emt 0:05:12]} Kf7 {[%emt 0:00:40]} 48. Na3 {[%emt 0:01:48]} Ke7 {[%emt 0:01:39]} 49. Nb5 {[%emt 0:00:02]} Bc1 {[%emt 0:00:36]} 50. Ke2 {[%emt 0:07:10]} a3 {[%emt 0:00:13]} 51. Nc3 {[%emt 0:00:20]} Bb2 {[%emt 0:00:09]} 52. Na2 {[%emt 0:00:26]} Kd6 {[%emt 0:00:04]} 53. Ke3 {[%emt 0:00:29]} Kxc6 {[%emt 0:00:04]} 54. Kxe4 {[%emt 0:00:10]} Kc5 {[%emt 0:00:16] Kd4+} 0-1

[Event "Marienbad Open-A2 2019"]
[Site "Marianske Lazne"]
[Date "2019.01.22"]
[Round "5"]
[White "Gungl, Theo"]
[Black "Swicarz, Maciej"]
[Result "0-1"]
[ECO "B17"]
[WhiteElo "2368"]
[BlackElo "2331"]
[Annotator "NA"]
[PlyCount "142"]
[EventDate "2019.01.17"]
[EventType "tourn"]
[EventCountry "CZE"]
[SourceTitle "playchess.com"]
[Source "ChessBase"]
[SourceQuality "1"]
[TimeControl "40/5400+30:1800+30"]

1. e4 {[%emt 0:00:00]} c6 {[%emt 0:00:00]} 2. d4 {[%emt 0:00:00]} d5 {[%emt 0:00:00]} 3. Nc3 {[%emt 0:00:00]} dxe4 {[%emt 0:00:51]} 4. Nxe4 {[%emt 0:00:00]} Nd7 {[%emt 0:00:43]} 5. Ng5 {[%emt 0:00:02]} Ngf6 {[%emt 0:00:09]} 6. Bd3 {[%emt 0:00:19]} e6 {[%emt 0:00:07]} 7. N1f3 {[%emt 0:00:13]} h6 {[%emt 0:00:08]} 8. Nxe6 {[%emt 0:07:55]} fxe6 {[%emt 0:00:47]} 9. Bg6+ {[%emt 0:01:12]} Ke7 {[%emt 0:00:02]} 10. O-O {[%emt 0:05:35]} Qc7 {[%emt 0:00:03]} 11. Re1 {[%emt 0:16:50]} Kd8 {[%emt 0:00:02]} 12. Ne5 {[%emt 0:04:38]} Nxe5 {[%emt 0:02:31]} 13. dxe5+ {[%emt 0:00:22]} Nd7 {[%emt 0:01:43]} 14. Be3 {[%emt 0:21:15]} Qa5 {[%emt 0:05:12]} 15. Qg4 {[%emt 0:08:41]} Nb6 {[%emt 0:10:58]} 16. Rad1+ {[%emt 0:01:14]} Kc7 {[%emt 0:00:55]} 17. Bf7 {[%emt 0:00:10]} Qb4 {[%emt 0:20:33]} 18. Qg6 {[%emt 0:02:49]} Qe7 {[%emt 0:05:18]} 19. Rd6 {[%emt 0:08:29]} Bd7 {[%emt 0:26:31]} 20. Bxe6 {[%emt 0:13:01]} Bxe6 {[%emt 0:00:02]} 21. Qxe6 {[%emt 0:03:01]} Qxe6 {[%emt 0:03:09]} 22. Rxe6 {[%emt 0:00:01]} Nd5 {[%emt 0:01:25]} 23. Rg6 {[%emt 0:00:23]} Rd8 {[%emt 0:02:02]} 24. g3 {[%emt 0:01:56]} Rg8 {[%emt 0:04:05]} 25. c3 {[%emt 0:02:32]} a5 {[%emt 0:05:02]} 26. a3 {[%emt 0:00:45]} a4 {[%emt 0:00:44]} 27. Rg4 {[%emt 0:00:09]} Nxe3 {[%emt 0:01:41]} 28. Rxe3 {[%emt 0:00:01]} Bc5 {[%emt 0:00:08]} 29. Re2 {[%emt 0:00:14]} b5 {[%emt 0:01:01]} 30. Kg2 {[%emt 0:00:07]} g5 {[%emt 0:00:24]} 31. h4 {[%emt 0:00:37]} Rdf8 {[%emt 0:00:49]} 32. f3 {[%emt 0:01:21]} Be7 {[%emt 0:00:43]} 33. hxg5 {[%emt 0:00:52]} hxg5 {[%emt 0:00:02]} 34. Rd2 {[%emt 0:00:33]} Rf5 {[%emt 0:00:43]} 35. f4 {[%emt 0:00:39]} Rgf8 {[%emt 0:00:46]} 36. Rd4 {[%emt 0:00:21]} Bc5 {[%emt 0:00:36]} 37. Re4 {[%emt 0:00:05]} Kd7 {[%emt 0:03:05]} 38. Kf3 {[%emt 0:00:23]} Ke6 {[%emt 0:00:18]} 39. Re2 {[%emt 0:00:09]} Be7 {[%emt 0:00:48]} 40. Ke4 {[%emt 0:00:27]} Rh8 {[%emt 0:01:15]} 41. Rd2 {[%emt 0:05:49]} Rh1 {[%emt 0:01:02]} 42. Re2 {[%emt 0:00:20]} Rf8 {[%emt 0:03:27]} 43. fxg5 {[%emt 0:02:12]} Rh5 {[%emt 0:00:46]} 44. Kd3 {[%emt 0:01:54]} Rd8+ {[%emt 0:00:26]} 45. Kc2 {[%emt 0:00:46]} Rxg5 {[%emt 0:00:12]} 46. Rh4 {[%emt 0:05:03]} Rxe5 {[%emt 0:00:29]} 47. Rh6+ {[%emt 0:00:38]} Bf6 {[%emt 0:00:06]} 48. Rf2 {[%emt 0:00:20]} Rf5 {[%emt 0:00:22]} 49. Re2+ {[%emt 0:00:13]} Kf7 {[%emt 0:00:08]} 50. g4 {[%emt 0:00:35]} Rg5 {[%emt 0:00:36]} 51. Re4 {[%emt 0:01:22]} Rdd5 {[%emt 0:00:59]} 52. Rf4 {[%emt 0:02:03]} Rd6 {[%emt 0:00:04]} 53. Re4 {[%emt 0:07:10]} Rgd5 {[%emt 0:01:26]} 54. Rh2 {[%emt 0:01:08]} Bg5 {[%emt 0:00:37]} 55. Re1 {[%emt 0:00:25]} Kg6 {[%emt 0:01:05]} 56. Rhe2 {[%emt 0:00:35]} Bf4 {[%emt 0:00:57]} 57. Re6+ {[%emt 0:00:37]} Kg5 {[%emt 0:00:09]} 58. Rxd6 {[%emt 0:00:12]} Rxd6 {[%emt 0:00:02]} 59. c4 {[%emt 0:03:05]} Kxg4 {[%emt 0:03:32]} 60. cxb5 {[%emt 0:03:21]} cxb5 {[%emt 0:00:02]} 61. b3 {[%emt 0:01:28]} Kf5 {[%emt 0:00:35]} 62. bxa4 {[%emt 0:01:08]} bxa4 {[%emt 0:00:02]} 63. Re8 {[%emt 0:01:54]} Be5 {[%emt 0:00:36]} 64. Rc8 {[%emt 0:00:36]} Rd4 {[%emt 0:01:17]} 65. Rc5 {[%emt 0:00:54]} Ke6 {[%emt 0:02:28]} 66. Kc3 {[%emt 0:00:38]} Rh4+ {[%emt 0:00:19]} 67. Kd3 {[%emt 0:00:53]} Bd6 {[%emt 0:00:57]} 68. Rc4 {[%emt 0:00:12]} Rh3+ {[%emt 0:00:34]} 69. Kc2 {[%emt 0:00:52]} Rxa3 {[%emt 0:00:25]} 70. Kb2 {[%emt 0:00:04]} Rb3+ {[%emt 0:00:55]} 71. Ka2 {[%emt 0:00:05]} Rb4 {[%emt 0:00:16]} 0-1

[Event "Marienbad Open-A2 2019"]
[Site "Marianske Lazne"]
[Date "2019.01.22"]
[Round "5"]
[White "Yeritsyan, Aram"]
[Black "Swayams, Mishra"]
[Result "0-1"]
[ECO "C24"]
[WhiteElo "2349"]
[BlackElo "2432"]
[Annotator "NA"]
[PlyCount "100"]
[EventDate "2019.01.17"]
[EventType "tourn"]
[EventCountry "CZE"]
[SourceTitle "playchess.com"]
[Source "ChessBase"]
[SourceQuality "1"]
[TimeControl "40/5400+30:1800+30"]

1. e4 {[%emt 0:00:00]} e5 {[%emt 0:02:41]} 2. Bc4 {[%emt 0:00:00]} Nf6 {[%emt 0:01:08]} 3. d3 {[%emt 0:00:01]} Bc5 {[%emt 0:00:19]} 4. Nc3 {[%emt 0:00:07]} Nc6 {[%emt 0:00:35]} 5. f4 {[%emt 0:00:08]} d6 {[%emt 0:00:03]} 6. Nf3 {[%emt 0:00:04]} a6 {[%emt 0:00:12]} 7. f5 {[%emt 0:00:15]} Na5 {[%emt 0:00:02]} 8. a3 {[%emt 0:00:11]} Nxc4 {[%emt 0:00:06]} 9. dxc4 {[%emt 0:00:04]} h6 {[%emt 0:00:29]} 10. Qe2 {[%emt 0:02:40]} b5 {[%emt 0:05:02]} 11. cxb5 {[%emt 0:06:21]} axb5 {[%emt 0:00:35]} 12. b4 {[%emt 0:01:24]} Bd4 {[%emt 0:04:25]} 13. Nxd4 {[%emt 0:07:13]} exd4 {[%emt 0:01:03]} 14. Nd5 {[%emt 0:00:03]} O-O {[%emt 0:02:33]} 15. O-O {[%emt 0:00:34]} Re8 {[%emt 0:04:06]} 16. Qd3 {[%emt 0:02:27]} c5 {[%emt 0:03:10]} 17. Bb2 {[%emt 0:10:26]} Bb7 {[%emt 0:18:56]} 18. Nxf6+ {[%emt 0:07:54]} Qxf6 {[%emt 0:00:15]} 19. Rae1 {[%emt 0:00:03]} c4 {[%emt 0:25:03]} 20. Qxd4 {[%emt 0:00:05]} Qxd4+ {[%emt 0:00:04]} 21. Bxd4 {[%emt 0:00:04]} Bxe4 {[%emt 0:07:54]} 22. c3 {[%emt 0:08:13]} f6 {[%emt 0:00:59]} 23. Ra1 {[%emt 0:00:21]} Bd3 {[%emt 0:00:44]} 24. Rf2 {[%emt 0:02:31]} Rxa3 {[%emt 0:00:24]} 25. Rfa2 {[%emt 0:00:03]} Rxa2 {[%emt 0:01:29]} 26. Rxa2 {[%emt 0:00:02]} Bxf5 {[%emt 0:06:52]} 27. Kf2 {[%emt 0:03:18]} h5 {[%emt 0:07:45]} 28. Ra6 {[%emt 0:01:06]} Be4 {[%emt 0:02:19]} 29. Rxd6 {[%emt 0:00:35]} Ra8 {[%emt 0:00:04]} 30. Be3 {[%emt 0:06:22]} Bd3 {[%emt 0:01:38]} 31. h4 {[%emt 0:04:56]} Ra2+ {[%emt 0:00:15]} 32. Kf3 {[%emt 0:00:59]} Rc2 {[%emt 0:00:28]} 33. Rd5 {[%emt 0:02:51]} Be2+ {[%emt 0:00:26]} 34. Kf4 {[%emt 0:00:28]} Rxc3 {[%emt 0:00:22]} 35. Rxb5 {[%emt 0:00:03]} Rb3 {[%emt 0:00:17]} 36. Rb8+ {[%emt 0:00:02]} Kh7 {[%emt 0:01:28]} 37. b5 {[%emt 0:00:04]} Bf1 {[%emt 0:01:08]} 38. g3 {[%emt 0:07:40]} Bg2 {[%emt 0:00:02]} 39. b6 {[%emt 0:00:03]} g5+ {[%emt 0:00:20]} 40. hxg5 {[%emt 0:00:04]} fxg5+ {[%emt 0:00:05]} 41. Kxg5 {[%emt 0:30:02]} Rxe3 {[%emt 0:30:07]} 42. Rc8 {[%emt 0:00:30]} Re5+ {[%emt 0:00:00]} 43. Kh4 {[%emt 0:00:00]} Rb5 {[%emt 0:00:00]} 44. Rxc4 {[%emt 0:00:00]} Bf3 {[%emt 0:00:00]} 45. Rc3 {[%emt 0:00:00]} Bg4 {[%emt 0:00:00]} 46. Rc7+ {[%emt 0:00:00]} Kg6 {[%emt 0:00:00]} 47. Rc6+ {[%emt 0:00:00]} Kf5 {[%emt 0:00:00]} 48. b7 {[%emt 0:00:00]} Rb1 {[%emt 0:00:00]} 49. Rc5+ {[%emt 0:00:00]} Kf6 {[%emt 0:00:00]} 50. Rc6+ {[%emt 0:00:00]} Be6 {[%emt 0:00:00]} 0-1

[Event "Marienbad Open-A2 2019"]
[Site "Marianske Lazne"]
[Date "2019.01.22"]
[Round "5"]
[White "Kulkarni, Bhakti"]
[Black "Vokac, Marek"]
[Result "1/2-1/2"]
[ECO "B06"]
[WhiteElo "2303"]
[BlackElo "2380"]
[Annotator "NA"]
[PlyCount "103"]
[EventDate "2019.01.17"]
[EventType "tourn"]
[EventCountry "CZE"]
[SourceTitle "playchess.com"]
[Source "ChessBase"]
[SourceQuality "1"]
[TimeControl "40/5400+30:1800+30"]

1. d4 {[%emt 0:00:11]} g6 {[%emt 0:02:32]} 2. e4 {[%emt 0:00:42]} Bg7 {[%emt 0:00:02]} 3. Nc3 {[%emt 0:00:19]} c6 {[%emt 0:00:31]} 4. Nf3 {[%emt 0:00:29]} d6 {[%emt 0:00:11]} 5. h3 {[%emt 0:01:27]} Nf6 {[%emt 0:00:26]} 6. Be2 {[%emt 0:00:38]} O-O {[%emt 0:00:33]} 7. O-O {[%emt 0:00:12]} Nbd7 {[%emt 0:02:09]} 8. e5 {[%emt 0:02:24]} Nd5 {[%emt 0:03:46]} 9. Nxd5 {[%emt 0:04:06]} cxd5 {[%emt 0:00:03]} 10. exd6 {[%emt 0:00:23]} exd6 {[%emt 0:01:27]} 11. c3 {[%emt 0:00:32]} Nb6 {[%emt 0:05:44]} 12. Bf4 {[%emt 0:02:48]} Be6 {[%emt 0:07:23]} 13. Qb3 {[%emt 0:01:20]} Qc7 {[%emt 0:01:20]} 14. Bd3 {[%emt 0:04:30]} Rfe8 {[%emt 0:03:29]} 15. Rfe1 {[%emt 0:01:17]} Bd7 {[%emt 0:00:47]} 16. Qa3 {[%emt 0:03:33]} Bf8 {[%emt 0:00:07]} 17. Rxe8 {[%emt 0:00:11]} Rxe8 {[%emt 0:00:03]} 18. Re1 {[%emt 0:00:08]} Rxe1+ {[%emt 0:03:06]} 19. Nxe1 {[%emt 0:00:03]} a6 {[%emt 0:00:09]} 20. Qa5 {[%emt 0:01:56]} Be6 {[%emt 0:08:33]} 21. Nc2 {[%emt 0:01:41]} Kg7 {[%emt 0:05:30]} 22. Ne3 {[%emt 0:02:05]} Be7 {[%emt 0:00:31]} 23. Ng4 {[%emt 0:01:36]} h5 {[%emt 0:04:00]} 24. Ne3 {[%emt 0:00:38]} Na8 {[%emt 0:06:09]} 25. Qa4 {[%emt 0:01:28]} Nb6 {[%emt 0:04:37]} 26. Qd1 {[%emt 0:17:39]} Qd7 {[%emt 0:03:36]} 27. Qc2 {[%emt 0:05:37]} Qc6 {[%emt 0:04:51]} 28. Qe2 {[%emt 0:06:17]} Qa4 {[%emt 0:05:40]} 29. g4 {[%emt 0:05:31]} hxg4 {[%emt 0:00:33]} 30. hxg4 {[%emt 0:00:03]} Qd7 {[%emt 0:07:57]} 31. f3 {[%emt 0:01:27]} Nc8 {[%emt 0:02:29]} 32. Qg2 {[%emt 0:03:55]} Kg8 {[%emt 0:01:55]} 33. Bc2 {[%emt 0:03:19]} b5 {[%emt 0:01:23]} 34. Qg3 {[%emt 0:03:41]} Bf8 {[%emt 0:01:59]} 35. Nf5 {[%emt 0:00:39]} Qe8 {[%emt 0:03:11]} 36. Kf2 {[%emt 0:02:55]} b4 {[%emt 0:05:24]} 37. Nxd6 {[%emt 0:01:24]} Nxd6 {[%emt 0:00:11]} 38. Bxd6 {[%emt 0:00:11]} bxc3 {[%emt 0:00:33]} 39. Bxf8 {[%emt 0:09:08]} Qxf8 {[%emt 0:00:22]} 40. bxc3 {[%emt 0:00:08]} Qc8 {[%emt 0:05:36]} 41. Qe5 {[%emt 0:31:06]} Qxc3 {[%emt 0:30:40]} 42. Bxg6 {[%emt 0:00:28]} Qd2+ {[%emt 0:00:00]} 43. Kg3 {[%emt 0:00:00]} Qd1 {[%emt 0:00:00]} 44. Qe3 {[%emt 0:00:00]} Qa4 {[%emt 0:00:00]} 45. Bb1 {[%emt 0:00:00]} Kf8 {[%emt 0:00:00]} 46. a3 {[%emt 0:00:00]} Qd1 {[%emt 0:00:00]} 47. Ba2 {[%emt 0:00:00]} a5 {[%emt 0:00:00]} 48. Bb3 {[%emt 0:00:00]} Qb1 {[%emt 0:00:47]} 49. f4 {[%emt 0:00:00]} f6 {[%emt 0:00:03]} 50. Qxe6 {[%emt 0:00:00]} Qg1+ {[%emt 0:00:10]} 51. Kf3 {[%emt 0:00:00]} Qf1+ {[%emt 0:00:03] Ke4} 52. Kg3 {[%emt 0:00:00]} 1/2-1/2

[Event "Marienbad Open-A2 2019"]
[Site "Marianske Lazne"]
[Date "2019.01.23"]
[Round "6"]
[White "Kovalev, Andrei"]
[Black "Liu, Guanchu"]
[Result "0-1"]
[ECO "B22"]
[WhiteElo "2520"]
[BlackElo "2425"]
[Annotator "RC"]
[PlyCount "94"]
[EventDate "2019.01.17"]
[EventType "tourn"]
[EventCountry "CZE"]
[SourceTitle "playchess.com"]
[Source "ChessBase"]
[SourceQuality "1"]
[TimeControl "40/5400+30:1800+30"]

1. e4 {[%emt 0:03:52]} c5 2. Nf3 {[%emt 0:00:17]} g6 {[%emt 0:00:09]} 3. Bc4 {[%emt 0:04:03]} Bg7 {[%emt 0:01:22]} 4. c3 {[%emt 0:00:08]} d6 {[%emt 0:09:12]} 5. d4 {[%emt 0:00:28]} cxd4 {[%emt 0:02:09]} 6. cxd4 {[%emt 0:00:05]} Nf6 {[%emt 0:00:06]} 7. Nc3 {[%emt 0:00:07]} O-O {[%emt 0:00:15]} 8. h3 {[%emt 0:00:25]} Nxe4 {[%emt 0:08:07]} 9. Nxe4 {[%emt 0:02:09]} d5 {[%emt 0:00:04]} 10. Bd3 {[%emt 0:00:07]} dxe4 {[%emt 0:00:11]} 11. Bxe4 {[%emt 0:00:04]} Nc6 {[%emt 0:00:53]} 12. d5 {[%emt 0:00:42]} Nb4 {[%emt 0:09:13]} 13. Qb3 {[%emt 0:00:51]} Qd6 {[%emt 0:06:50]} 14. O-O {[%emt 0:12:13]} f5 {[%emt 0:07:17]} 15. Bd2 {[%emt 0:01:47]} a5 {[%emt 0:01:34]} 16. Bxb4 {[%emt 0:08:32]} Qxb4 {[%emt 0:03:20]} 17. Bc2 {[%emt 0:03:34]} Qxb3 {[%emt 0:06:53]} 18. Bxb3 {[%emt 0:00:41]} a4 {[%emt 0:00:06]} 19. Bc4 {[%emt 0:01:10]} b5 {[%emt 0:00:35]} 20. Bxb5 {[%emt 0:00:13]} a3 {[%emt 0:00:07]} 21. b3 {[%emt 0:18:34]} Bxa1 {[%emt 0:00:10]} 22. Rxa1 {[%emt 0:00:03]} Bb7 {[%emt 0:05:56]} 23. Bc6 {[%emt 0:05:46]} Bxc6 {[%emt 0:07:11]} 24. dxc6 {[%emt 0:00:04]} Ra5 {[%emt 0:00:02]} 25. Re1 {[%emt 0:04:07]} Rc8 {[%emt 0:00:10]} 26. Ne5 {[%emt 0:04:32]} Rc5 {[%emt 0:00:27]} 27. Re2 {[%emt 0:08:51]} Rc1+ {[%emt 0:09:47]} 28. Kh2 {[%emt 0:00:03]} Rb1 {[%emt 0:00:07]} 29. Rd2 {[%emt 0:03:07]} Rb2 {[%emt 0:03:09]} 30. Rd7 {[%emt 0:00:12]} Kf8 {[%emt 0:00:04]} 31. Ra7 {[%emt 0:03:54]} Rxa2 {[%emt 0:00:04]} 32. f4 {[%emt 0:04:01]} Ra1 {[%emt 0:04:35]} 33. Kg3 {[%emt 0:01:54]} a2 {[%emt 0:00:04]} 34. Kh4 {[%emt 0:07:58]} Rf1 {[%emt 0:01:23]} 35. Rxa2 {[%emt 0:00:13]} Rxf4+ {[%emt 0:00:03]} 36. g4 {[%emt 0:00:33]} Rb4 {[%emt 0:00:28]} 37. Re2 {[%emt 0:02:02]} Rxb3 {[%emt 0:00:24]} 38. gxf5 {[%emt 0:00:39]} gxf5 {[%emt 0:00:08]} 39. Kg5 {[%emt 0:00:24]} Rxh3 {[%emt 0:02:18]} 40. Kxf5 {[%emt 0:00:28]} Rh6 {[%emt 0:09:21]} 41. Rc2 {[%emt 0:30:36]} Rc7 {[%emt 0:35:14]} 42. Ke4 {[%emt 0:00:00]} e6 {[%emt 0:00:00]} 43. Kd4 {[%emt 0:00:00]} Rh5 {[%emt 0:00:00]} 44. Re2 {[%emt 0:00:00]} Ke7 {[%emt 0:00:00]} 45. Kc5 {[%emt 0:00:00]} Rc8 {[%emt 0:00:00]} 46. Kb6 {[%emt 0:00:00]} Rxe5 {[%emt 0:00:00]} 47. Rxe5 {[%emt 0:00:00]} Kd6 {[%emt 0:00:00]} 0-1